[Event "EYCC Open U14 2018"]
[Site "Riga"]
[Date "2018.08.22"]
[Round "3"]
[White "Kochavi, Ori"]
[Black "Morgunov, Marc"]
[Result "0-1"]
[ECO "C77"]
[WhiteElo "2138"]
[BlackElo "2373"]
[Annotator "NA"]
[PlyCount "76"]
[EventDate "2018.08.20"]
[EventType "swiss"]
[EventCountry "LAT"]
[SourceTitle "playchess.com"]
[Source "ChessBase"]
[SourceQuality "1"]
[TimeControl "40/5400+30:1800+30"]

1. e4 {[%emt 0:00:00]} e5 {[%emt 0:00:00]} 2. Nf3 {[%emt 0:00:00]} Nc6 {[%emt 0:00:00]} 3. Bb5 {[%emt 0:00:02]} a6 {[%emt 0:00:00]} 4. Ba4 {[%emt 0:00:07]} Nf6 {[%emt 0:00:04]} 5. d3 {[%emt 0:00:05]} d6 {[%emt 0:00:09]} 6. c3 {[%emt 0:01:03]} g6 {[%emt 0:00:09]} 7. O-O Bg7 8. h3 {[%emt 0:01:03] C77: Ruy Lopez: 3...a6 4 Ba4 Nf6, unusual lines} (8. Nbd2 O-O 9. Re1 Nd7 10. Nf1 Nc5 11. Bxc6 bxc6 12. d4 exd4 13. cxd4 Ne6 14. Ng3 c5 15. dxc5 Nxc5 16. Bg5 Qe8 17. Qd2 Bg4 18. Bh6 Bxf3 19. Bxg7 Kxg7 20. gxf3 {1-0 (52) Anand,V (2759)-Caruana,F (2816) Leuven 2018}) 8... O-O {[%emt 0:06:17]} 9. Be3 {[%emt 0:00:55]} h6 {[%emt 0:02:03]} 10. Nbd2 {[%emt 0:00:12]} Re8 {[%emt 0:03:36]} 11. Re1 {[%emt 0:11:55] LiveBook: 7 Games} d5 {[%emt 0:00:13]} 12. Bc5 $146 {[%emt 0:03:58]} ({Predecessor:} 12. exd5 Nxd5 13. Bxc6 bxc6 14. Qa4 Bf5 15. Ne4 Rb8 16. Rab1 Nb6 17. Qc2 {½-½ (40) Zhao,J (2599)-Wang,H (2713) Hanoi 2018}) 12... b5 {[%emt 0:05:55]} 13. Bc2 {[%emt 0:05:49]} Nd7 {[%emt 0:02:54]} 14. Nb3 {[%emt 0:03:46]} Nxc5 {[%emt 0:03:16]} 15. Nxc5 {[%emt 0:00:06]} d4 {[%emt 0:00:07]} 16. Rc1 {[%emt 0:09:31]} Qd6 {[%emt 0:04:31]} 17. cxd4 {[%emt 0:00:42]} Nxd4 {[%emt 0:02:57]} 18. b4 {[%emt 0:04:53]} a5 {[%emt 0:04:16]} 19. Nxd4 {[%emt 0:01:27]} Qxd4 {[%emt 0:02:35]} 20. Bb3 {[%emt 0:00:20]} axb4 {[%emt 0:01:09]} 21. Bd5 {[%emt 0:02:58]} Ra3 {[%emt 0:03:26]} 22. Nb3 {[%emt 0:18:30]} Qa7 {[%emt 0:01:46]} 23. Rc6 {[%emt 0:04:48]} Be6 {[%emt 0:03:24]} 24. Bxe6 {[%emt 0:00:30]} Rxe6 {[%emt 0:00:07]} 25. Rxe6 $17 {[%emt 0:00:54]} fxe6 {[%emt 0:00:08]} 26. Qg4 {[%emt 0:00:28]} Kh7 {[%emt 0:01:12]} 27. Qxe6 {[%emt 0:05:22]} Rxa2 {[%emt 0:01:20]} 28. Re3 {[%emt 0:00:39]} Ra6 {[%emt 0:01:18]} 29. Qe7 {[%emt 0:00:11]} c5 {[%emt 0:08:22]} 30. Qxa7 {[%emt 0:04:16]} Rxa7 {[%emt 0:00:06]} 31. Nxc5 {[%emt 0:00:06]} Rc7 {[%emt 0:00:06]} 32. Nb3 {[%emt 0:00:07]} Rc3 {[%emt 0:00:10]} 33. d4 {[%emt 0:00:04]} exd4 {[%emt 0:00:16]} 34. Rxc3 {[%emt 0:00:06]} bxc3 {[%emt 0:00:16]} 35. Kf1 {[%emt 0:00:04]} d3 {[%emt 0:02:44]} 36. Ke1 {[%emt 0:00:43]} b4 {[%emt 0:00:09]} 37. Kd1 {[%emt 0:00:39]} h5 {[%emt 0:03:33]} 38. Nc5 {[%emt 0:00:10]} c2+ {[%emt 0:00:09]} 0-1

[Event "EYCC Open U14 2018"]
[Site "Riga"]
[Date "2018.08.22"]
[Round "3"]
[White "Antonica, Dragos Andrei"]
[Black "Kacharava, Nikolozi"]
[Result "0-1"]
[ECO "B07"]
[WhiteElo "2113"]
[BlackElo "2361"]
[Annotator "NA"]
[PlyCount "88"]
[EventDate "2018.08.20"]
[EventType "swiss"]
[EventCountry "LAT"]
[SourceTitle "playchess.com"]
[Source "ChessBase"]
[SourceQuality "1"]
[TimeControl "40/5400+30:1800+30"]

1. d4 {[%emt 0:00:00]} d6 {[%emt 0:00:00]} 2. e4 {[%emt 0:00:00]} Nf6 {[%emt 0:00:00]} 3. Nc3 {[%emt 0:00:00]} g6 {[%emt 0:00:23]} 4. g3 {[%emt 0:02:28]} Bg7 {[%emt 0:00:50]} 5. Bg2 {[%emt 0:00:31]} O-O {[%emt 0:00:16]} 6. Nf3 {[%emt 0:07:04]} c6 {[%emt 0:00:36]} 7. O-O {[%emt 0:01:32]} Nbd7 {[%emt 0:00:26]} 8. e5 {[%emt 0:05:43] A49: Königsindisch (ohne c2-c4)} dxe5 {[%emt 0:00:33] LiveBook: 4 Games} 9. dxe5 {[%emt 0:00:01]} Ng4 {[%emt 0:00:39]} (9... Nd5 10. Nxd5 cxd5 11. Qxd5 Nxe5 12. Nxe5 Qxd5 13. Bxd5 Bxe5 14. Re1 Bf6 15. c3 Rd8 {1-0 (74) Zarkua,D (2437)-Guliev,L (2367) Corum 2016}) 10. e6 $1 {[%emt 0:00:24]} fxe6 {[%emt 0:00:15]} 11. h3 $146 {[%emt 0:07:33]} ({Vorgänger:} 11. Qe2 Ndf6 12. Ng5 Qb6 13. h3 Nh6 14. Nxe6 Bxe6 15. Qxe6+ Nf7 16. Qxe7 {1-0 (37) Mrna,V (2150)-Drabek,M (2095) Czechia 2005}) 11... Nge5 {[%emt 0:06:13]} 12. Ng5 {[%emt 0:14:24]} Nb6 {[%emt 0:02:43]} 13. Qe2 {[%emt 0:00:23]} Qd4 {[%emt 0:01:35]} 14. Rd1 {[%emt 0:22:12]} Qc4 {[%emt 0:02:24]} 15. Qe1 {[%emt 0:00:23]} Nd5 {[%emt 0:07:52]} 16. Bd2 $11 {[%emt 0:14:05]} h6 {[%emt 0:08:11]} 17. b3 {[%emt 0:05:04]} Qa6 {[%emt 0:03:09]} 18. Nxd5 {[%emt 0:01:39]} cxd5 {[%emt 0:07:15]} 19. Bc3 {[%emt 0:07:54]} Qd6 {[%emt 0:09:36]} 20. f4 {[%emt 0:01:41]} hxg5 {[%emt 0:02:27]} 21. fxe5 {[%emt 0:00:21]} Qc5+ {[%emt 0:00:37]} 22. Bd4 {[%emt 0:00:49]} Qxc2 {[%emt 0:03:56]} 23. Rd2 {[%emt 0:00:07]} Qc7 {[%emt 0:02:20]} 24. Rc1 {[%emt 0:01:42]} Qa5 {[%emt 0:01:31]} 25. Qe3 {[%emt 0:00:31]} Bd7 {[%emt 0:02:41]} 26. Bc3 {[%emt 0:03:20]} Qa6 {[%emt 0:05:38]} 27. Qxg5 {[%emt 0:00:11]} Rac8 {[%emt 0:03:34]} 28. Rcc2 {[%emt 0:01:36]} Qb6+ {[%emt 0:03:47]} 29. Bd4 {[%emt 0:01:22]} Qb4 {[%emt 0:02:05]} 30. Qe3 {[%emt 0:00:06]} Rxc2 {[%emt 0:02:56]} 31. Rxc2 {[%emt 0:00:01]} Kh7 {[%emt 0:02:10]} 32. Bc5 {[%emt 0:01:59]} Qa5 {[%emt 0:00:14]} 33. g4 Qc7 {[%emt 0:02:34]} 34. Re2 {[%emt 0:00:59]} Bh6 {[%emt 0:01:42]} 35. g5 {[%emt 0:00:38]} Bxg5 {[%emt 0:00:32]} 36. Qxg5 {[%emt 0:00:15]} Qxc5+ {[%emt 0:00:02]} 37. Kh1 {[%emt 0:00:48]} Kg7 {[%emt 0:01:52]} 38. h4 {[%emt 0:00:31]} Rf5 {[%emt 0:00:38]} 39. Qg3 {[%emt 0:00:37]} Bb5 {[%emt 0:05:26]} 40. Re3 {[%emt 0:00:00]} Qc1+ {[%emt 0:00:00]} 41. Kh2 {[%emt 0:01:55]} Qd2 {[%emt 0:03:27]} 42. Rf3 {[%emt 0:01:26]} Rxf3 {[%emt 0:01:29]} 43. Qxf3 {[%emt 0:00:07]} Bd3 {[%emt 0:00:45]} 44. h5 {[%emt 0:02:04]} Be4 {[%emt 0:00:29]} 0-1

[Event "EYCC Open U14 2018"]
[Site "Riga"]
[Date "2018.08.22"]
[Round "3"]
[White "Risteski, Emil"]
[Black "Tadic, Stefan"]
[Result "1/2-1/2"]
[ECO "B03"]
[WhiteElo "2081"]
[BlackElo "2240"]
[Annotator "NA"]
[PlyCount "69"]
[EventDate "2018.08.20"]
[EventType "swiss"]
[EventCountry "LAT"]
[SourceTitle "playchess.com"]
[Source "ChessBase"]
[SourceQuality "1"]
[TimeControl "40/5400+30:1800+30"]

1. e4 {[%emt 0:00:00]} Nf6 {[%emt 0:00:07]} 2. e5 {[%emt 0:01:24]} Nd5 {[%emt 0:00:11]} 3. d4 {[%emt 0:00:13]} d6 {[%emt 0:00:36]} 4. Bc4 {[%emt 0:03:28]} Nb6 {[%emt 0:01:38]} 5. Bb3 {[%emt 0:00:10]} Nc6 {[%emt 0:08:52]} 6. exd6 {[%emt 0:14:55]} exd6 {[%emt 0:03:13]} 7. c3 {[%emt 0:03:42]} Bf5 {[%emt 0:03:48]} 8. Nf3 {[%emt 0:00:30]} Be7 {[%emt 0:02:00]} 9. O-O {[%emt 0:00:25]} O-O {[%emt 0:01:54]} 10. Bf4 {[%emt 0:06:13]} Bf6 $11 {[%emt 0:07:15]} 11. Nbd2 {[%emt 0:02:18]} Qd7 {[%emt 0:04:55]} 12. Re1 {[%emt 0:05:17]} Rfe8 {[%emt 0:03:29]} 13. Bg5 {[%emt 0:09:52]} Rxe1+ {[%emt 0:03:42]} 14. Qxe1 {[%emt 0:00:05]} Re8 {[%emt 0:00:28]} 15. Qf1 {[%emt 0:00:58]} Bxg5 {[%emt 0:10:14]} 16. Nxg5 {[%emt 0:00:07]} Bg6 {[%emt 0:04:10]} 17. Re1 {[%emt 0:01:53]} Kf8 {[%emt 0:11:02]} 18. Ngf3 {[%emt 0:02:54]} a6 {[%emt 0:08:59]} 19. Nh4 {[%emt 0:06:39]} Na5 {[%emt 0:06:02]} 20. Nxg6+ {[%emt 0:02:10]} hxg6 {[%emt 0:00:09]} 21. g3 {[%emt 0:06:51]} Na4 {[%emt 0:04:19]} 22. Bxa4 {[%emt 0:09:14]} Qxa4 {[%emt 0:00:06]} 23. Rxe8+ {[%emt 0:00:39]} Kxe8 {[%emt 0:00:28]} 24. Qb1 {[%emt 0:04:42]} Kd7 {[%emt 0:05:46]} 25. b3 {[%emt 0:02:16]} Qb5 {[%emt 0:00:36]} 26. c4 {[%emt 0:00:54]} Qg5 {[%emt 0:01:47]} 27. Nf3 {[%emt 0:02:32]} Qf6 {[%emt 0:01:02]} 28. Qd3 {[%emt 0:01:01]} Nc6 {[%emt 0:00:17]} 29. a3 {[%emt 0:01:09]} Ne7 {[%emt 0:00:55]} 30. Kg2 {[%emt 0:02:25]} Nf5 {[%emt 0:01:43]} 31. h4 {[%emt 0:02:29]} c6 {[%emt 0:01:50]} 32. b4 {[%emt 0:00:23]} Kc7 {[%emt 0:00:50]} 33. a4 Nh6 34. Ng5 Ng4 35. Qf3 1/2-1/2

[Event "EYCC Open U14 2018"]
[Site "Riga"]
[Date "2018.08.23"]
[Round "4"]
[White "Tadic, Stefan"]
[Black "Munshi, Aditya"]
[Result "1-0"]
[ECO "B10"]
[WhiteElo "2240"]
[BlackElo "2018"]
[Annotator "NA RC"]
[PlyCount "73"]
[EventDate "2018.08.20"]
[EventType "swiss"]
[EventCountry "LAT"]
[SourceTitle "playchess.com"]
[Source "ChessBase"]
[SourceQuality "1"]
[TimeControl "40/5400+30:1800+30"]

1. e4 {[%emt 0:00:00]} c6 {[%emt 0:00:00]} 2. c4 {[%emt 0:00:48]} d5 {[%emt 0:00:07]} 3. exd5 {[%emt 0:00:42]} cxd5 {[%emt 0:00:07]} 4. cxd5 {[%emt 0:00:41]} Nf6 {[%emt 0:00:34]} 5. Bb5+ {[%emt 0:01:02]} Nbd7 {[%emt 0:03:48]} 6. Nc3 {[%emt 0:01:31]} g6 {[%emt 0:01:32]} 7. Nf3 {[%emt 0:02:06]} Bg7 {[%emt 0:01:09]} 8. d6 {[%emt 0:06:23] LiveBook: 14 Games} e6 {[%emt 0:13:07]} 9. d4 {[%emt 0:05:01]} O-O {[%emt 0:04:21]} 10. O-O {[%emt 0:05:23]} a6 {[%emt 0:12:37]} 11. Be2 {[%emt 0:05:42]} Nb6 {[%emt 0:16:56]} 12. Bf4 {[%emt 0:08:27]} Nh5 {[%emt 0:06:12]} 13. Qd2 {[%emt 0:12:19]} Nxf4 $14 {[%emt 0:10:16]} 14. Qxf4 {[%emt 0:00:05]} Nd5 {[%emt 0:00:54]} 15. Nxd5 {[%emt 0:17:07]} exd5 {[%emt 0:00:00]} 16. Rac1 {[%emt 0:00:09]} Qb6 {[%emt 0:02:17]} 17. b3 {[%emt 0:12:38]} Be6 {[%emt 0:02:52]} 18. Rc7 {[%emt 0:00:48]} Rfd8 {[%emt 0:12:47]} 19. Ng5 {[%emt 0:01:50]} Bh6 {[%emt 0:02:54]} 20. h4 {[%emt 0:00:20]} Rxd6 {[%emt 0:05:19]} 21. Rxb7 {[%emt 0:01:03]} Qxb7 {[%emt 0:00:40]} 22. Qxd6 {[%emt 0:00:01]} Bxg5 {[%emt 0:00:50]} 23. hxg5 {[%emt 0:00:02]} Qa7 {[%emt 0:00:40]} 24. Rd1 {[%emt 0:01:06]} a5 {[%emt 0:00:50]} 25. Bf3 {[%emt 0:00:02]} Qb7 {[%emt 0:00:50]} 26. Rc1 {[%emt 0:00:01]} Rc8 {[%emt 0:00:38]} 27. Rc5 {[%emt 0:01:08]} Re8 {[%emt 0:00:42]} 28. Rxa5 {[%emt 0:02:13]} Bf5 {[%emt 0:00:28]} 29. Bxd5 {[%emt 0:00:38]} Qc8 {[%emt 0:00:32]} 30. Rc5 {[%emt 0:00:58]} Re1+ {[%emt 0:00:26]} 31. Kh2 {[%emt 0:00:01]} Qe8 {[%emt 0:00:26]} 32. Rc7 {[%emt 0:00:57]} Be6 {[%emt 0:00:27]} 33. Re7 {[%emt 0:00:21]} Qf8 {[%emt 0:00:41]} 34. Bxe6 {[%emt 0:00:42]} fxe6 {[%emt 0:00:29]} 35. Rxe6 {[%emt 0:00:40]} Qxf2 {[%emt 0:00:31]} 36. Qd8+ {[%emt 0:00:12]} Kg7 {[%emt 0:00:30]} 37. Qf6+ {[%emt 0:00:07]} 1-0

[Event "EYCC Open U14 2018"]
[Site "Riga"]
[Date "2018.08.24"]
[Round "5"]
[White "Kacharava, Nikolozi"]
[Black "Tsoi, Dmitry"]
[Result "1/2-1/2"]
[ECO "C41"]
[WhiteElo "2361"]
[BlackElo "2393"]
[Annotator "NA"]
[PlyCount "89"]
[EventDate "2018.08.20"]
[EventType "swiss"]
[EventCountry "LAT"]
[SourceTitle "playchess.com"]
[Source "ChessBase"]
[SourceQuality "1"]
[TimeControl "40/5400+30:1800+30"]

1. e4 {[%emt 0:00:00]} e5 {[%emt 0:00:00]} 2. Nf3 {[%emt 0:00:00]} d6 {[%emt 0:00:00]} 3. d4 {[%emt 0:00:20]} exd4 {[%emt 0:00:00]} 4. Nxd4 {[%emt 0:00:14]} Nf6 {[%emt 0:00:02]} 5. Nc3 {[%emt 0:00:22]} Be7 {[%emt 0:00:15]} 6. g3 {[%emt 0:00:38]} Nc6 {[%emt 0:01:40] C41: Philidor-Verteidigung} (6... O-O 7. Bg2 Re8 8. O-O Bf8 9. h3 Nbd7 10. Re1 c5 11. Nf5 Ne5 12. Bg5 h6 13. Bxf6 Qxf6 14. Nd5 Qd8 {½-½ (32) Oparin,G (2602)-Mamedyarov,S (2799) Moscow 2017}) 7. Bg2 {[%emt 0:00:48]} Bg4 {[%emt 0:00:18] LiveBook: 19 Games} 8. Nxc6 {[%emt 0:04:33]} bxc6 {[%emt 0:00:22]} 9. Qd2 {[%emt 0:00:56]} O-O {[%emt 0:00:50]} 10. O-O {[%emt 0:00:41]} Qc8 {[%emt 0:00:48]} 11. b3 {[%emt 0:00:47]} Bh3 {[%emt 0:00:17]} 12. Bb2 {[%emt 0:00:40]} Bxg2 {[%emt 0:00:35]} 13. Kxg2 {[%emt 0:00:06] [#]} Nd7 $146 {[%emt 0:02:54]} ({Vorgänger:} 13... Re8 14. f3 Qa6 15. Rfe1 Rad8 16. Ne2 Nd7 {½-½ (26) Goncharenko,G (2493)-Wilczek,T (2648) ICCF email 2011}) 14. Ne2 {[%emt 0:04:14]} Bf6 {[%emt 0:01:20]} 15. c4 {[%emt 0:02:31]} Re8 {[%emt 0:01:05]} 16. f3 {[%emt 0:03:31]} c5 {[%emt 0:04:40]} 17. Nf4 {[%emt 0:08:25]} Bxb2 {[%emt 0:00:11]} 18. Qxb2 {[%emt 0:00:05]} Nf6 {[%emt 0:00:02]} 19. Rae1 {[%emt 0:02:53]} Qb7 {[%emt 0:03:53]} 20. h3 {[%emt 0:04:03]} Nd7 {[%emt 0:06:22]} 21. Nd5 {[%emt 0:02:47]} a5 {[%emt 0:01:06]} 22. Rf2 {[%emt 0:03:04]} Ne5 {[%emt 0:04:08]} 23. Re3 {[%emt 0:04:57]} Nc6 {[%emt 0:07:36]} 24. h4 {[%emt 0:12:27]} Ne5 {[%emt 0:01:51]} 25. h5 {[%emt 0:04:16]} h6 {[%emt 0:02:44]} 26. g4 {[%emt 0:01:09]} c6 {[%emt 0:05:43]} 27. Nf4 {[%emt 0:07:19]} a4 {[%emt 0:00:38]} 28. Nd3 {[%emt 0:01:53]} axb3 {[%emt 0:04:07]} 29. axb3 {[%emt 0:02:36]} Nd7 {[%emt 0:07:09]} 30. f4 {[%emt 0:06:36]} Rab8 $11 {[%emt 0:09:49]} (30... Nf6 $17 31. Kf3 Qd7) 31. Qe2 {[%emt 0:02:38]} Qc8 {[%emt 0:06:26]} 32. Nc1 {[%emt 0:09:11]} Nf6 {[%emt 0:01:16]} 33. f5 {[%emt 0:01:43]} d5 {[%emt 0:04:31]} 34. e5 {[%emt 0:00:33]} Ne4 {[%emt 0:00:51]} 35. Rxe4 {[%emt 0:01:05]} dxe4 {[%emt 0:00:05]} 36. Qxe4 {[%emt 0:00:07]} Qd8 {[%emt 0:00:34]} 37. Nd3 {[%emt 0:01:34]} Rxb3 {[%emt 0:02:49]} 38. Nxc5 {[%emt 0:00:25]} Ra3 {[%emt 0:05:11]} 39. f6 {[%emt 0:02:55]} Qc7 {[%emt 0:07:06]} 40. Nd3 {[%emt 0:00:00]} gxf6 {[%emt 0:00:00]} 41. Rxf6 {[%emt 0:05:26]} Qd8 {[%emt 0:02:59]} 42. Rg6+ {[%emt 0:16:10]} Kf8 {[%emt 0:00:18]} 43. Qf4 {[%emt 0:03:07]} Rxd3 {[%emt 0:01:24]} 44. Qxh6+ {[%emt 0:00:35]} Ke7 {[%emt 0:00:05]} 45. Re6+ {[%emt 0:00:52]} 1/2-1/2

[Event "EYCC Open U14 2018"]
[Site "Riga"]
[Date "2018.08.24"]
[Round "5"]
[White "Subelj, Jan"]
[Black "Boyer, Mahel"]
[Result "0-1"]
[ECO "C00"]
[WhiteElo "2341"]
[BlackElo "2189"]
[Annotator "NA"]
[PlyCount "76"]
[EventDate "2018.08.20"]
[EventType "swiss"]
[EventCountry "LAT"]
[SourceTitle "playchess.com"]
[Source "ChessBase"]
[SourceQuality "1"]
[TimeControl "40/5400+30:1800+30"]

1. e4 {[%emt 0:00:00]} e6 {[%emt 0:00:00]} 2. d4 {[%emt 0:00:00]} d5 {[%emt 0:00:00]} 3. Bd3 {[%emt 0:00:18]} c5 {[%emt 0:01:37]} 4. exd5 {[%emt 0:00:23]} exd5 {[%emt 0:01:19]} 5. dxc5 {[%emt 0:01:10]} Bxc5 {[%emt 0:00:09]} 6. Nf3 {[%emt 0:00:44]} Nf6 {[%emt 0:12:41]} 7. O-O {[%emt 0:02:10]} O-O {[%emt 0:00:05]} 8. Nbd2 {[%emt 0:16:47]} Nc6 {[%emt 0:00:41] C01: Französische Verteidigung (Abtauschvariante)} 9. Nb3 {[%emt 0:00:07]} Bb6 {[%emt 0:01:50]} 10. Bg5 {[%emt 0:06:47] LiveBook: 6 Games} (10. h3 Ne4 11. c3 Qf6 12. Bc2 Rd8 13. Nbd4 h6 14. Be3 Bd7 15. Re1 Qg6 {½-½ (38) Guseinov,G (2631)-Zvjaginsev,V (2659) Khanty-Mansiysk 2013}) 10... Bg4 {[%emt 0:03:36]} 11. Be2 {[%emt 0:18:51]} Re8 {[%emt 0:06:51]} 12. Nfd4 {[%emt 0:02:53]} Bxe2 {[%emt 0:14:09]} 13. Nxe2 {[%emt 0:00:02]} Qe7 $146 {[%emt 0:04:11]} ({Vorgänger:} 13... h6 14. Bxf6 Qxf6 15. c3 Rad8 16. Qd2 Re4 17. Rae1 Rde8 18. Ng3 Rxe1 19. Rxe1 Qxf2+ {0-1 (19) Dvirnyy,D (2447)-Contin,D (2291) Arvier 2009}) 14. Ng3 {[%emt 0:06:31]} Qe5 {[%emt 0:08:36]} 15. Bxf6 {[%emt 0:04:22]} Qxf6 {[%emt 0:00:10]} 16. Qxd5 {[%emt 0:09:11]} Qxb2 $17 {[%emt 0:02:13]} 17. c4 {[%emt 0:01:21]} Rad8 {[%emt 0:07:33]} 18. Qg5 {[%emt 0:00:35]} Qe5 {[%emt 0:08:32]} 19. Nf5 {[%emt 0:02:07]} g6 {[%emt 0:07:23]} 20. Nh6+ {[%emt 0:00:07]} Kg7 {[%emt 0:00:03]} 21. Qh4 {[%emt 0:00:06]} f5 {[%emt 0:02:58]} 22. Rae1 {[%emt 0:02:07]} Qf6 {[%emt 0:06:12]} 23. Qf4 {[%emt 0:00:52]} g5 {[%emt 0:02:20]} 24. Nxf5+ {[%emt 0:04:39]} Kg6 {[%emt 0:00:08]} 25. Nh4+ {[%emt 0:00:32]} gxh4 {[%emt 0:00:03]} 26. Qg4+ {[%emt 0:00:01]} Qg5 {[%emt 0:01:25]} 27. Re6+ {[%emt 0:00:13]} Rxe6 {[%emt 0:00:04]} 28. Qxe6+ {[%emt 0:00:02]} Qf6 {[%emt 0:00:24]} 29. Qe4+ {[%emt 0:00:03]} Kg7 {[%emt 0:00:40]} 30. c5 {[%emt 0:00:05]} Bc7 {[%emt 0:00:11]} 31. f4 {[%emt 0:00:32]} Rd7 {[%emt 0:02:55]} 32. Qe2 {[%emt 0:00:42]} Qf5 {[%emt 0:00:38]} 33. Qf2 {[%emt 0:00:37]} h3 {[%emt 0:00:37]} 34. gxh3 {[%emt 0:00:28]} Kf8 {[%emt 0:01:00]} 35. Nd2 {[%emt 0:00:29]} Nd4 {[%emt 0:00:34]} 36. Nf3 {[%emt 0:00:30]} Nxf3+ {[%emt 0:00:07]} 37. Qxf3 {[%emt 0:00:01]} Qxc5+ {[%emt 0:00:08]} 38. Kh1 {[%emt 0:00:18]} Qd5 {[%emt 0:00:31]} 0-1

[Event "EYCC Open U14 2018"]
[Site "Riga"]
[Date "2018.08.24"]
[Round "5"]
[White "Pogosyan, Stefan"]
[Black "Van Dael, Siem"]
[Result "1-0"]
[ECO "E68"]
[WhiteElo "2331"]
[BlackElo "2174"]
[Annotator "NA"]
[PlyCount "55"]
[EventDate "2018.08.20"]
[EventType "swiss"]
[EventCountry "LAT"]
[SourceTitle "playchess.com"]
[Source "ChessBase"]
[SourceQuality "1"]
[TimeControl "40/5400+30:1800+30"]

1. d4 {[%emt 0:00:00]} Nf6 {[%emt 0:00:00]} 2. c4 {[%emt 0:00:00]} g6 {[%emt 0:00:00]} 3. Nc3 {[%emt 0:00:00]} Bg7 {[%emt 0:00:00]} 4. g3 {[%emt 0:00:00]} O-O {[%emt 0:00:00]} 5. Bg2 {[%emt 0:00:00]} d6 {[%emt 0:00:04]} 6. Nf3 {[%emt 0:00:00]} Nbd7 {[%emt 0:00:04]} 7. O-O {[%emt 0:00:07]} e5 {[%emt 0:00:05]} 8. e4 {[%emt 0:00:03]} Re8 {[%emt 0:00:06]} 9. Re1 {[%emt 0:00:33]} exd4 {[%emt 0:00:09]} 10. Nxd4 {[%emt 0:00:05]} a6 {[%emt 0:00:08]} 11. h3 {[%emt 0:01:22]} Rb8 {[%emt 0:00:08]} 12. f4 {[%emt 0:11:58]} Nc5 {[%emt 0:53:26]} 13. b3 {[%emt 0:17:42]} Bd7 {[%emt 0:09:06]} 14. Bb2 {[%emt 0:02:18]} b5 {[%emt 0:02:11]} 15. cxb5 {[%emt 0:07:51]} axb5 {[%emt 0:00:27]} 16. b4 {[%emt 0:00:08]} Na4 {[%emt 0:03:00]} 17. Nxa4 {[%emt 0:00:20]} bxa4 {[%emt 0:00:05]} 18. Nc2 {[%emt 0:12:00]} ({White should try} 18. e5 $11 dxe5 19. fxe5) 18... Qc8 $11 {[%emt 0:03:27]} 19. g4 {[%emt 0:02:41]} Nh5 {[%emt 0:17:15]} 20. Bxg7 {[%emt 0:01:16]} Nxg7 {[%emt 0:00:05]} 21. f5 {[%emt 0:10:17]} Qb7 {[%emt 0:06:17]} 22. a3 {[%emt 0:07:41]} Bc6 {[%emt 0:01:51]} 23. f6 {[%emt 0:09:23]} Ne6 {[%emt 0:00:29]} 24. Qd2 {[%emt 0:00:22]} Kh8 {[%emt 0:02:35]} 25. Rac1 {[%emt 0:02:19]} Qb6+ {[%emt 0:00:51]} 26. Kh1 {[%emt 0:00:56]} Ba8 {[%emt 0:00:37]} 27. Ne3 {[%emt 0:01:01]} Nf4 {[%emt 0:00:30]} 28. Nc4 {[%emt 0:00:25]} 1-0

[Event "EYCC Open U14 2018"]
[Site "Riga"]
[Date "2018.08.24"]
[Round "5"]
[White "Trifan, Andrei Ioan"]
[Black "Hoffmann, Yair"]
[Result "1/2-1/2"]
[ECO "B14"]
[WhiteElo "2308"]
[BlackElo "2112"]
[Annotator "NA"]
[PlyCount "83"]
[EventDate "2018.08.20"]
[EventType "swiss"]
[EventCountry "LAT"]
[SourceTitle "playchess.com"]
[Source "ChessBase"]
[SourceQuality "1"]
[TimeControl "40/5400+30:1800+30"]

1. e4 {[%emt 0:00:00]} c6 {[%emt 0:00:00]} 2. d4 {[%emt 0:00:00]} d5 {[%emt 0:00:00]} 3. exd5 {[%emt 0:00:09]} cxd5 {[%emt 0:00:00]} 4. c4 {[%emt 0:00:30]} Nf6 {[%emt 0:00:43]} 5. Nc3 {[%emt 0:01:08]} e6 {[%emt 0:00:16]} 6. Nf3 {[%emt 0:02:11]} Be7 {[%emt 0:00:34]} 7. cxd5 {[%emt 0:04:46]} Nxd5 {[%emt 0:01:29]} 8. Bd3 {[%emt 0:01:23]} O-O {[%emt 0:02:59]} 9. O-O {[%emt 0:00:24]} Nc6 {[%emt 0:00:52]} 10. Re1 {[%emt 0:02:42]} Nf6 {[%emt 0:02:47]} 11. a3 {[%emt 0:05:21]} b6 {[%emt 0:07:16]} 12. Bg5 {[%emt 0:01:09]} Bb7 {[%emt 0:02:34]} 13. Bc2 {[%emt 0:00:34]} Rc8 {[%emt 0:04:14] LiveBook: 84 Games} 14. Qd3 {[%emt 0:06:51]} g6 {[%emt 0:00:46]} 15. Rad1 {[%emt 0:06:33]} Nd5 {[%emt 0:09:46]} 16. Bh6 {[%emt 0:07:43]} Nxc3 {[%emt 0:07:25]} 17. bxc3 {[%emt 0:10:16]} Re8 {[%emt 0:01:53]} 18. c4 {[%emt 0:09:21]} Na5 {[%emt 0:07:08]} (18... Bf8 $5 {[%cal Rf8h6]} 19. Bd2 Qc7 $11) 19. Ne5 {[%emt 0:08:03]} Bg5 {[%emt 0:03:06]} 20. Qh3 {[%emt 0:05:50]} Bxh6 {[%emt 0:13:20]} 21. Qxh6 {[%emt 0:00:59]} Qf6 {[%emt 0:00:12]} 22. Ng4 {[%emt 0:05:30]} Qg7 {[%emt 0:00:06]} 23. Qg5 $16 {[%emt 0:04:04]} Kf8 {[%emt 0:04:58]} 24. c5 {[%emt 0:02:34]} Red8 {[%emt 0:01:33]} 25. Qf4 {[%emt 0:02:38]} g5 {[%emt 0:03:35]} 26. Qe3 {[%emt 0:03:39]} Bd5 {[%emt 0:03:03]} 27. Bd3 {[%emt 0:02:01]} Bb3 {[%emt 0:02:28]} 28. Rd2 {[%emt 0:00:57]} Rxd4 {[%emt 0:00:19]} 29. cxb6 {[%emt 0:01:10]} axb6 {[%emt 0:01:04]} 30. Ba6 {[%emt 0:00:51]} Rcd8 {[%emt 0:02:31]} 31. Rxd4 {[%emt 0:00:38]} Rxd4 {[%emt 0:00:50]} 32. Ne5 {[%emt 0:00:46]} Rd6 {[%emt 0:01:39]} 33. Qc3 {[%emt 0:01:26]} Kg8 {[%emt 0:02:08]} 34. Qc7 {[%emt 0:00:59]} Rd5 {[%emt 0:02:17]} 35. Qxb6 {[%emt 0:01:00]} Qf6 {[%emt 0:01:08]} 36. Qb4 {[%emt 0:01:14]} Kg7 {[%emt 0:01:36]} 37. Qe4 {[%emt 0:00:21]} Rd6 {[%emt 0:01:09]} 38. Bd3 {[%emt 0:00:25]} h6 {[%emt 0:01:47]} 39. h3 {[%emt 0:01:38]} Bd5 {[%emt 0:01:15]} 40. Qb4 {[%emt 0:00:00]} Qd8 {[%emt 0:00:00]} 41. Be4 {[%emt 0:13:52]} Bxe4 {[%emt 0:17:47]} 42. Qxe4 {[%emt 0:00:32]} 1/2-1/2